Workbook

Sheet Příjmy 2013
B1: Rozpočet Mikroregionu Krnovsko na rok 2014
A2: Příjmy | C2: Příjmy
A3: ÚZ | B3: § | C3: Položka | D3: Obsah | E3: Obec | G3: Schválený rozpočet | H3: Mimořádné příspěvky 1% dotace ROP, PRV | I3: Rozpočtová změna | J3: Rozpočet po změnách
E4: počet obv. | F4: Kč/obec | G4: tis. Kč | H4: tis. Kč | I4: tis. Kč | J4: tis. Kč
B5: Pozn.: | C5: 30. VH odsouhlasila příspěvek obce ve výši na jednoho obv./rok: | F5: 12
C6: 4121 | D6: Neinvestiční dotace od obcí -celkem za obce | H6: =SUM(H7:H31) -> 145.5
D7: z toho Bohušov | E7: 408 | F7: =SUM(E7*F5) -> 4896
D8: Brantice | E8: 1352 | F8: =SUM(E8*F5) -> 16224
D9: Býkov-Láryšov | E9: 165 | F9: =SUM(E9*F5) -> 1980
D10: Čaková | E10: 305 | F10: =SUM(E10*F5) -> 3660
D11: Dívčí Hrad | E11: 271 | F11: =SUM(E11*F5) -> 3252
D12: Heřmanovice | E12: 361 | F12: =SUM(E12*F5) -> 4332
D13: Hlinka | E13: 199 | F13: =SUM(E13*F5) -> 2388
D14: Holčovice | E14: 700 | F14: =SUM(E14*F5) -> 8400
D15: Hošťálkovy | E15: 590 | F15: =SUM(E15*F5) -> 7080
D16: Janov | E16: 300 | F16: =SUM(E16*F5) -> 3600
D17: Jindřichov | E17: 1349 | F17: =SUM(E17*F5) -> 16188 | H17: 24.3
D18: Krasov | E18: 351 | F18: =SUM(E18*F5) -> 4212
D19: Krnov | E19: 24518 | F19: =SUM(E19*F5) -> 294216
D20: Lichnov | E20: 1089 | F20: =SUM(E20*F5) -> 13068 | H20: 24.2
D21: Liptaň | E21: 474 | F21: =SUM(E21*F5) -> 5688
D22: Město Albrechtice | E22: 3621 | F22: =SUM(E22*F5) -> 43452 | H22: 24.2
D23: Osoblaha | E23: 1131 | F23: =SUM(E23*F5) -> 13572 | H23: 24.3
D24: Petrovice | E24: 137 | F24: =SUM(E24*F5) -> 1644
D25: Rusín | E25: 148 | F25: =SUM(E25*F5) -> 1776
D26: Slezské Pavlovice | E26: 225 | F26: =SUM(E26*F5) -> 2700
D27: Slezské Rudoltice | E27: 571 | F27: =SUM(E27*F5) -> 6852
D28: Třemešná | E28: 910 | F28: =SUM(E28*F5) -> 10920
D29: Úvalno | E29: 993 | F29: =SUM(E29*F5) -> 11916 | H29: 24.2
D30: Vysoká | E30: 321 | F30: =SUM(E30*F5) -> 3852
D31: Zátor | E31: 1191 | F31: =SUM(E31*F5) -> 14292 | H31: 24.3
E32: =SUM(E7:E31) -> 41680 | F32: =SUM(F7:F31) -> 500160 | G32: 500.1
C35: 4122 | D35: Fond mikroprojektů Euroregionu Praděd - příjem až v 2014
C36: 4122 | D36: NIV transfer z KÚ na projekt 2013-2014 ( předpokládaný příjem 1. zálohy v 2013 )
C38: 2141 | D38: Příjmy z úroků | G38: 6
D39: Příjmy celkem | G39: =SUM(G32:G38) -> 506.1

Sheet Výdaje 2013
A1: Rozpočet Mikroregionu Krnovsko na rok 2014
A3: Výdaje
A5: § | B5: Položka | C5: Obsah | D5: Schválený rozpočet | E5: Rozpočtová změna | F5: Rozpočet po změnách
D6: tis. Kč | E6: tis. Kč | F6: tis. Kč
A7: 3419 | B7: 5169 | C7: Hokejová liga - projekt (pronájem zimního stadionu ) | D7: 94
A8: 3421 | B8: 5339 | C8: Žákovská liga ve stolním tenise | D8: 15
A9: 3429 | B9: 5169 | C9: Příprava projektů a následná realizace | D9: 73 | G9: ?
A10: 6409 | B10: 5137 | C10: DKP | D10: 4
B11: 5139 | C11: Materiál - kancelář. potřeby | D11: 5
B12: 5161 | C12: Služby pošt | D12: 1
B13: 5162 | C13: Služby telekomunikací | D13: 8
B14: 5163 | C14: Služby peněžních ústavů - poplatky za BÚ | D14: 6
B15: 5164 | C15: Pronájem kanceláře | D15: 6
B16: 5166 | C16: Konzultační a poradenské služby, účetní služby | D16: 200
B17: 5168 | C17: Služby zpracování dat - servis software, web stránky | D17: 20.1
B18: 5169 | C18: Tiskové a propagační služby | D18: 50
B19: 5172 | C19: Programové vybavení | D19: 8
B20: 5175 | C20: Pohoštění ( SR+VH + oběd- školení účetních) | D20: 15
B21: 5362 | C21: Platby daní a poplatků (FÚ) | D21: 1
A22: Výdaje celkem | D22: =SUM(D7:D21) -> 506.1

Sheet Financování 2013
A1: Rozpočet Mikroregionu Krnovsko na rok 2014
A3: Financování
A5: § | B5: Položka | C5: Obsah | D5: Schválený rozpočet | E5: Rozpočtová změna | F5: Rozpočet po změnách
D6: tis. Kč | E6: tis. Kč | F6: tis. Kč
B7: 8115 | C7: Změna stavu krátkodobých prostředků
A8: Financování celkem | D8: 0
A14: Zpracovali: | C14: Mgr.Michal Skalka - manažer
C15: Latochová Zuzana, ekonomka MRK
A17: Dne: | B17: 2013-11-07
A20: Starosta obce, která je členem svazku, potvrzuje, že rozpočet MRK, byl projednán v OZ
A21: a zveřejněném na úřední desce ( v tištěné i elektronické podobě ).
A22: Vyvěšen dne:
A24: Sejmut dne:
A25: Sejmut dne:
A28: Rozpočet bude schválen na valné hromadě MRk dne 12.12.2013
